[Event "Titled Tuesday Blitz February 14 Early 2023"]
[White "Rosh Jain"]
[Black "Prado Lobo, Jonas"]
[WhiteFideId "25789465"]
[BlackFideId "32050666"]
[WhiteElo "2248"]
[BlackElo "2313"]
[Result "0-1"]
[Round "01"]
[TimeControl "180+2"]
[Date "2023.02.15"]
[WhiteClock "0:00:36"]
[BlackClock "0:00:03"]

1. e4 {[%clk 0:02:56]}  e6 {[%clk 0:02:55]} 2. d4 {[%clk 0:02:49]}  d5 {[%clk 0:02:54]} 3. Nc3 {[%clk 0:02:48]}  Nf6 {[%clk 0:02:54]} 4. Bg5 {[%clk 0:02:47]}  Bb4 {[%clk 0:02:48]} 5. e5 {[%clk 0:02:43]}  h6 {[%clk 0:02:48]} 6. Bd2 {[%clk 0:02:24]}  Bxc3 {[%clk 0:02:46]} 7. bxc3 {[%clk 0:02:24]}  Ne4 {[%clk 0:02:46]} 8. Bd3 {[%clk 0:02:24]}  Nxd2 {[%clk 0:02:42]} 9. Qxd2 {[%clk 0:02:25]}  c5 {[%clk 0:02:41]} 10. Qf4 {[%clk 0:02:22]}  Qa5 {[%clk 0:02:38]} 11. Kd2 {[%clk 0:02:09]}  cxd4 {[%clk 0:02:26]} 12. Qxd4 {[%clk 0:02:08]}  Nc6 {[%clk 0:02:25]} 13. Qf4 {[%clk 0:02:08]}  d4 {[%clk 0:02:20]} 14. Ne2 {[%clk 0:02:08]}  dxc3+ {[%clk 0:02:17]} 15. Nxc3 {[%clk 0:02:06]}  Qxe5 {[%clk 0:02:09]} 16. Qxe5 {[%clk 0:02:03]}  Nxe5 {[%clk 0:02:10]} 17. Bb5+ {[%clk 0:02:02]}  Bd7 {[%clk 0:02:10]} 18. Rab1 {[%clk 0:02:01]}  O-O-O {[%clk 0:02:08]} 19. Kc1 {[%clk 0:02:00]}  Bxb5 {[%clk 0:01:33]} 20. Rxb5 {[%clk 0:01:57]}  Nc6 {[%clk 0:01:25]} 21. Re1 {[%clk 0:01:54]}  Rd4 {[%clk 0:01:22]} 22. g3 {[%clk 0:01:48]}  Rhd8 {[%clk 0:01:22]} 23. h4 {[%clk 0:01:47]}  Rd2 {[%clk 0:01:15]} 24. f4 {[%clk 0:01:34]}  Kb8 {[%clk 0:01:14]} 25. Rb2 {[%clk 0:01:26]}  Rg2 {[%clk 0:01:06]} 26. Ne4 {[%clk 0:01:18]}  Rd5 {[%clk 0:00:33]} 27. Kb1 {[%clk 0:01:14]}  Nd4 {[%clk 0:00:29]} 28. Kc1 {[%clk 0:01:03]}  f5 {[%clk 0:00:15]} 29. Nd2 {[%clk 0:01:00]}  Rxg3 {[%clk 0:00:11]} 30. Nb3 {[%clk 0:00:48]}  Nxb3+ {[%clk 0:00:07]} 31. axb3 {[%clk 0:00:47]}  Rd6 {[%clk 0:00:06]} 32. Ra2 {[%clk 0:00:46]}  Rg4 {[%clk 0:00:06]} 33. Ra4 {[%clk 0:00:46]}  Rxh4 {[%clk 0:00:06]} 34. Rg1 {[%clk 0:00:43]}  g5 {[%clk 0:00:06]} 35. fxg5 {[%clk 0:00:41]}  Rxa4 {[%clk 0:00:07]} 36. bxa4 {[%clk 0:00:39]}  hxg5 {[%clk 0:00:07]} 37. Rxg5 {[%clk 0:00:40]}  Rd4 {[%clk 0:00:08]} 38. Rg8+ {[%clk 0:00:31]}  Kc7 {[%clk 0:00:08]} 39. Rg7+ {[%clk 0:00:31]}  Kc6 {[%clk 0:00:08]} 40. Re7 {[%clk 0:00:31]}  Re4 {[%clk 0:00:08]} 41. Kb2 {[%clk 0:00:31]}  f4 {[%clk 0:00:07]} 42. Kc3 {[%clk 0:00:31]}  e5 {[%clk 0:00:07]} 43. Kd3 {[%clk 0:00:30]}  Re3+ {[%clk 0:00:06]} 44. Kd2 {[%clk 0:00:30]}  Kb6 {[%clk 0:00:06]} 45. Re6+ {[%clk 0:00:24]}  Ka5 {[%clk 0:00:06]} 46. Re7 {[%clk 0:00:21]}  Ka6 {[%clk 0:00:05]} 47. Re6+ {[%clk 0:00:20]}  b6 {[%clk 0:00:06]} 48. Re7 {[%clk 0:00:20]}  Re4 {[%clk 0:00:06]} 49. Kd3 {[%clk 0:00:20]}  Rd4+ {[%clk 0:00:06]} 50. Kc3 {[%clk 0:00:20]}  Rd5 {[%clk 0:00:05]} 51. Kc4 {[%clk 0:00:20]}  Rc5+ {[%clk 0:00:05]} 52. Kd3 {[%clk 0:00:19]}  Rd5+ {[%clk 0:00:04]} 53. Ke4 {[%clk 0:00:18]}  Ra5 {[%clk 0:00:03]} 54. Kd3 {[%clk 0:00:18]}  Rc5 {[%clk 0:00:03]} 55. c4 {[%clk 0:00:17]}  Ra5 {[%clk 0:00:03]} 56. Kc3 {[%clk 0:00:09]}  Rxa4 {[%clk 0:00:03]} 57. Rxe5 {[%clk 0:00:09]}  f3 {[%clk 0:00:04]} 58. Rf5 {[%clk 0:00:07]}  Ra3+ {[%clk 0:00:04]} 59. Kd4 {[%clk 0:00:07]}  Kb7 {[%clk 0:00:03]} 60. Rf7+ {[%clk 0:00:06]}  Kc6 {[%clk 0:00:03]} 61. Rf6+ {[%clk 0:00:06]}  Kd7 {[%clk 0:00:03]} 62. c5 {[%clk 0:00:03]}  b5 {[%clk 0:00:04]} 63. Kd5 {[%clk 0:00:02]}  Rd3+ {[%clk 0:00:02]} 64. Ke4 {[%clk 0:00:03]}  Rc3 {[%clk 0:00:02]} 65. Kd5 {[%clk 0:00:03]}  b4 {[%clk 0:00:02]} 66. c6+ {[%clk 0:00:03]}  Ke7 {[%clk 0:00:03]} 67. Re6+ {[%clk 0:00:03]}  Kf7 {[%clk 0:00:03]} 68. Re1 {[%clk 0:00:03]}  f2 {[%clk 0:00:03]} 69. Rf1 {[%clk 0:00:03]}  Rc2 {[%clk 0:00:04]} 70. Kd6 {[%clk 0:00:03]}  Ke8 {[%clk 0:00:03]} 71. c7 {[%clk 0:00:03]}  Rd2+ {[%clk 0:00:03]} 72. Kc6 {[%clk 0:00:03]}  Rc2+ {[%clk 0:00:04]} 73. Kb7 {[%clk 0:00:03]}  Kd7 {[%clk 0:00:04]} 74. Kxa7 {[%clk 0:00:01]}  Kxc7 {[%clk 0:00:04]} 75. Ka6 {[%clk 0:00:02]}  Kc6 {[%clk 0:00:04]} 76. Ka7 {[%clk 0:00:02]}  Kc5 {[%clk 0:00:05]} 77. Ka6 {[%clk 0:00:02]}  Kc4 {[%clk 0:00:05]} 78. Ka5 {[%clk 0:00:02]}  Kc3 {[%clk 0:00:06]} 79. Ka4 {[%clk 0:00:02]}  b3 {[%clk 0:00:07]} 80. Rb1 {[%clk 0:00:01]}  b2 {[%clk 0:00:07]} 81. Ka3 {[%clk 0:00:01]}  Rc1 {[%clk 0:00:07]} 82. Ka2 {[%clk 0:00:01]}  Rxb1 {[%clk 0:00:07]} 83. Kxb1 {[%clk 0:00:01]}  f1=Q+ {[%clk 0:00:08]} 84. Ka2 {[%clk 0:00:02]}  b1=Q+ {[%clk 0:00:08]} 85. Ka3 {[%clk 0:00:02]}  Qb2+ {[%clk 0:00:08]} 86. Ka4 {[%clk 0:00:02]}  Qb3+ {[%clk 0:00:09]} 87. Ka5 {[%clk 0:00:02]}  Qe1 {[%clk 0:00:08]} 88. Ka6 {[%clk 0:00:02]}  Qeb1 {[%clk 0:00:08]} 89. Ka5 {[%clk 0:00:01]}  Kc2 {[%clk 0:00:09]} 90. Ka6 {[%clk 0:00:01]}  Kd2 {[%clk 0:00:10]} 91. Ka7 {[%clk 0:00:02]}  Kd1 {[%clk 0:00:11]} 92. Ka8 {[%clk 0:00:02]}  Ke1 {[%clk 0:00:12]} 93. Ka7 {[%clk 0:00:03]}  Kf1 {[%clk 0:00:13]} 94. Ka8 {[%clk 0:00:04]}  Kg1 {[%clk 0:00:14]} 95. Ka7 {[%clk 0:00:04]}  Kh1 {[%clk 0:00:15]} 96. Ka8 {[%clk 0:00:05]}  Kh2 {[%clk 0:00:16]} 97. Ka7 {[%clk 0:00:06]}  Kh3 {[%clk 0:00:17]} 98. Ka8 {[%clk 0:00:07]}  Kh4 {[%clk 0:00:17]} 99. Ka7 {[%clk 0:00:08]}  Kh5 {[%clk 0:00:18]} 100. Ka8 {[%clk 0:00:09]}  Kh6 {[%clk 0:00:19]} 101. Ka7 {[%clk 0:00:10]}  Kh7 {[%clk 0:00:20]} 102. Ka8 {[%clk 0:00:11]}  Kh8 {[%clk 0:00:21]} 103. Ka7 {[%clk 0:00:11]}  Kg8 {[%clk 0:00:22]} 104. Ka8 {[%clk 0:00:12]}  Kg7 {[%clk 0:00:23]} 105. Ka7 {[%clk 0:00:13]}  Kg6 {[%clk 0:00:24]} 106. Ka8 {[%clk 0:00:14]}  Kg5 {[%clk 0:00:25]} 107. Ka7 {[%clk 0:00:15]}  Kg4 {[%clk 0:00:26]} 108. Ka8 {[%clk 0:00:16]}  Kg3 {[%clk 0:00:26]} 109. Ka7 {[%clk 0:00:17]}  Kg2 {[%clk 0:00:27]} 110. Ka8 {[%clk 0:00:18]}  Kf2 {[%clk 0:00:28]} 111. Ka7 {[%clk 0:00:19]}  Kf3 {[%clk 0:00:29]} 112. Ka8 {[%clk 0:00:20]}  Kf4 {[%clk 0:00:30]} 113. Ka7 {[%clk 0:00:20]}  Kf5 {[%clk 0:00:31]} 114. Ka8 {[%clk 0:00:21]}  Kf6 {[%clk 0:00:32]} 115. Ka7 {[%clk 0:00:22]}  Kf7 {[%clk 0:00:33]} 116. Ka8 {[%clk 0:00:23]}  Kf8 {[%clk 0:00:34]} 117. Ka7 {[%clk 0:00:24]}  Ke8 {[%clk 0:00:32]} 118. Ka8 {[%clk 0:00:25]}  Ke7 {[%clk 0:00:32]} 119. Ka7 {[%clk 0:00:26]}  Kd6 {[%clk 0:00:19]} 120. Ka8 {[%clk 0:00:27]}  Kd5 {[%clk 0:00:20]} 121. Ka7 {[%clk 0:00:28]}  Kd4 {[%clk 0:00:21]} 122. Ka8 {[%clk 0:00:29]}  Kd3 {[%clk 0:00:22]} 123. Ka7 {[%clk 0:00:29]}  Kd2 {[%clk 0:00:23]} 124. Ka8 {[%clk 0:00:30]}  Kd1 {[%clk 0:00:24]} 125. Ka7 {[%clk 0:00:31]}  Kc1 {[%clk 0:00:23]} 126. Ka8 {[%clk 0:00:32]}  Kc2 {[%clk 0:00:16]} 127. Ka7 {[%clk 0:00:33]}  Kc3 {[%clk 0:00:16]} 128. Ka8 {[%clk 0:00:34]}  Kc4 {[%clk 0:00:16]} 129. Ka7 {[%clk 0:00:35]}  Kc5 {[%clk 0:00:16]} 130. Ka8 {[%clk 0:00:36]}  Kc6 {[%clk 0:00:09]} 131. Ka7 {[%clk 0:00:36]}  Qa1# {[%clk 0:00:03]} 0-1


[Site "https://www.chess.com"]

[Event "Titled Tuesday Blitz February 14 Early 2023"]
[White "Ladan, Nicholas"]
[Black "Antonio, Jorge Carlos"]
[WhiteFideId "30918855"]
[BlackFideId "113190"]
[WhiteElo "2228"]
[BlackElo "2277"]
[Result "1/2-1/2"]
[Round "01"]
[TimeControl "180+2"]
[Date "2023.02.15"]
[WhiteClock "0:00:03"]
[BlackClock "0:00:45"]

1. d4 {[%clk 0:02:59]}  d5 {[%clk 0:02:59]} 2. c4 {[%clk 0:02:59]}  c6 {[%clk 0:02:59]} 3. cxd5 {[%clk 0:02:55]}  cxd5 {[%clk 0:02:59]} 4. Nc3 {[%clk 0:02:56]}  Nf6 {[%clk 0:02:59]} 5. f3 {[%clk 0:02:56]}  a6 {[%clk 0:02:59]} 6. e4 {[%clk 0:02:55]}  e6 {[%clk 0:02:56]} 7. e5 {[%clk 0:02:55]}  Nfd7 {[%clk 0:02:56]} 8. Bd3 {[%clk 0:02:54]}  Nc6 {[%clk 0:02:55]} 9. Nge2 {[%clk 0:02:53]}  Be7 {[%clk 0:02:49]} 10. O-O {[%clk 0:02:51]}  O-O {[%clk 0:02:49]} 11. f4 {[%clk 0:02:48]}  f6 {[%clk 0:02:48]} 12. f5 {[%clk 0:02:39]}  exf5 {[%clk 0:02:43]} 13. Bxf5 {[%clk 0:02:27]}  fxe5 {[%clk 0:02:36]} 14. Nxd5 {[%clk 0:02:17]}  Nxd4 {[%clk 0:02:31]} 15. Nxd4 {[%clk 0:02:14]}  exd4 {[%clk 0:02:30]} 16. Qh5 {[%clk 0:01:59]}  Nf6 {[%clk 0:01:55]} 17. Nxf6+ {[%clk 0:01:57]}  Rxf6 {[%clk 0:01:50]} 18. Qxh7+ {[%clk 0:01:54]}  Kf7 {[%clk 0:01:50]} 19. Bg5 {[%clk 0:01:50]}  Bxf5 {[%clk 0:01:46]} 20. Rxf5 {[%clk 0:01:49]}  Rxf5 {[%clk 0:01:41]} 21. Qxf5+ {[%clk 0:01:48]}  Bf6 {[%clk 0:01:41]} 22. Rf1 {[%clk 0:01:38]}  Rc8 {[%clk 0:01:36]} 23. Bxf6 {[%clk 0:01:33]}  gxf6 {[%clk 0:01:35]} 24. Qh5+ {[%clk 0:01:29]}  Kg7 {[%clk 0:01:35]} 25. Qg4+ {[%clk 0:01:16]}  Kf7 {[%clk 0:01:33]} 26. h4 {[%clk 0:01:07]}  d3 {[%clk 0:01:33]} 27. h5 {[%clk 0:00:55]}  d2 {[%clk 0:01:29]} 28. Qg6+ {[%clk 0:00:56]}  Ke6 {[%clk 0:01:28]} 29. Qe4+ {[%clk 0:00:52]}  Kf7 {[%clk 0:01:28]} 30. Qg6+ {[%clk 0:00:39]}  Ke6 {[%clk 0:01:27]} 31. Qg4+ {[%clk 0:00:39]}  Kf7 {[%clk 0:01:27]} 32. h6 {[%clk 0:00:16]}  Rc1 {[%clk 0:01:24]} 33. Qg7+ {[%clk 0:00:13]}  Ke6 {[%clk 0:01:24]} 34. Qg4+ {[%clk 0:00:13]}  Kf7 {[%clk 0:01:24]} 35. Qh5+ {[%clk 0:00:08]}  Kf8 {[%clk 0:01:20]} 36. Rd1 {[%clk 0:00:07]}  Qd4+ {[%clk 0:00:55]} 37. Kh2 {[%clk 0:00:04]}  Qf4+ {[%clk 0:00:45]} 38. Kg1 {[%clk 0:00:03]} 1/2-1/2


[Site "https://www.chess.com"]

[Event "Titled Tuesday Blitz February 14 Early 2023"]
[White "Loskutova, Viktoriya"]
[Black "Bayo Milagro, Alvaro"]
[WhiteFideId "34166278"]
[BlackFideId "22275240"]
[WhiteElo "2153"]
[BlackElo "2287"]
[Result "1-0"]
[Round "01"]
[TimeControl "180+2"]
[Date "2023.02.15"]
[WhiteClock "0:01:06"]
[BlackClock "0:01:54"]

1. e4 {[%clk 0:02:59]}  c5 {[%clk 0:02:55]} 2. Nf3 {[%clk 0:02:59]}  d6 {[%clk 0:02:55]} 3. Bb5+ {[%clk 0:02:58]}  Nd7 {[%clk 0:02:53]} 4. O-O {[%clk 0:02:58]}  Nf6 {[%clk 0:02:53]} 5. Re1 {[%clk 0:02:58]}  g6 {[%clk 0:02:53]} 6. c3 {[%clk 0:02:57]}  Bg7 {[%clk 0:02:52]} 7. d4 {[%clk 0:02:57]}  O-O {[%clk 0:02:49]} 8. h3 {[%clk 0:02:56]}  a6 {[%clk 0:02:47]} 9. Bf1 {[%clk 0:02:55]}  e5 {[%clk 0:02:47]} 10. a4 {[%clk 0:02:48]}  exd4 {[%clk 0:02:44]} 11. cxd4 {[%clk 0:02:48]}  Re8 {[%clk 0:02:45]} 12. Nc3 {[%clk 0:02:47]}  b6 {[%clk 0:02:44]} 13. e5 {[%clk 0:02:37]}  Nh5 {[%clk 0:02:41]} 14. g4 {[%clk 0:02:19]}  cxd4 {[%clk 0:02:40]} 15. Nxd4 {[%clk 0:02:18]}  dxe5 {[%clk 0:02:31]} 16. Nb3 {[%clk 0:01:24]}  Nf4 {[%clk 0:02:20]} 17. Bxf4 {[%clk 0:01:21]}  exf4 {[%clk 0:02:21]} 18. Rxe8+ {[%clk 0:01:20]}  Qxe8 {[%clk 0:02:21]} 19. Bg2 {[%clk 0:01:19]}  Rb8 {[%clk 0:02:20]} 20. Qd6 {[%clk 0:01:12]}  Bb7 {[%clk 0:02:17]} 21. Nd5 {[%clk 0:01:10]}  Bf8 {[%clk 0:01:56]} 22. Qxd7 {[%clk 0:01:07]}  Qxd7 {[%clk 0:01:56]} 23. Nf6+ {[%clk 0:01:07]}  Kg7 {[%clk 0:01:55]} 24. Nxd7 {[%clk 0:01:08]}  Rd8 {[%clk 0:01:54]} 25. Nxf8 {[%clk 0:01:08]}  Bxg2 {[%clk 0:01:54]} 26. Kxg2 {[%clk 0:01:08]}  Kxf8 {[%clk 0:01:55]} 27. Rc1 {[%clk 0:01:07]}  Rd2 {[%clk 0:01:54]} 28. Nxd2 {[%clk 0:01:06]} 1-0


[Site "https://www.chess.com"]

[Event "Titled Tuesday Blitz February 14 Early 2023"]
[White "Pajeken, Jakob Leon"]
[Black "Smith, Garrett L"]
[WhiteFideId "12942839"]
[BlackFideId "2024829"]
[WhiteElo "2417"]
[BlackElo "2047"]
[Result "1-0"]
[Round "01"]
[TimeControl "180+2"]
[Date "2023.02.15"]
[WhiteClock "0:00:17"]
[BlackClock "0:00:16"]

1. d4 {[%clk 0:02:30]}  Nf6 {[%clk 0:02:40]} 2. Nf3 {[%clk 0:02:30]}  g6 {[%clk 0:02:40]} 3. g3 {[%clk 0:02:29]}  Bg7 {[%clk 0:02:40]} 4. Bg2 {[%clk 0:02:27]}  c6 {[%clk 0:02:41]} 5. O-O {[%clk 0:02:26]}  d5 {[%clk 0:02:42]} 6. Ne5 {[%clk 0:02:26]}  O-O {[%clk 0:02:36]} 7. b3 {[%clk 0:02:24]}  c5 {[%clk 0:02:33]} 8. Bb2 {[%clk 0:02:21]}  cxd4 {[%clk 0:02:25]} 9. Nd2 {[%clk 0:02:17]}  Nc6 {[%clk 0:02:22]} 10. Nxc6 {[%clk 0:02:15]}  bxc6 {[%clk 0:02:23]} 11. Bxd4 {[%clk 0:02:16]}  Qd6 {[%clk 0:02:20]} 12. Nf3 {[%clk 0:02:06]}  Ba6 {[%clk 0:02:15]} 13. Re1 {[%clk 0:02:05]}  Rfe8 {[%clk 0:02:09]} 14. Be5 {[%clk 0:02:02]}  Qa3 {[%clk 0:02:04]} 15. Qc1 {[%clk 0:01:59]}  Qxc1 {[%clk 0:02:01]} 16. Raxc1 {[%clk 0:02:00]}  Red8 {[%clk 0:01:55]} 17. a4 {[%clk 0:01:38]}  c5 {[%clk 0:01:53]} 18. e3 {[%clk 0:01:33]}  Ne4 {[%clk 0:01:48]} 19. Bxg7 {[%clk 0:01:32]}  Kxg7 {[%clk 0:01:49]} 20. Ne5 {[%clk 0:01:27]}  Nc3 {[%clk 0:01:37]} 21. Bf3 {[%clk 0:01:21]}  Rac8 {[%clk 0:01:35]} 22. Kg2 {[%clk 0:01:20]}  c4 {[%clk 0:01:27]} 23. h4 {[%clk 0:01:05]}  h5 {[%clk 0:01:24]} 24. Bd1 {[%clk 0:01:00]}  f6 {[%clk 0:01:12]} 25. Nf3 {[%clk 0:01:00]}  e5 {[%clk 0:01:12]} 26. b4 {[%clk 0:01:00]}  Bb7 {[%clk 0:01:10]} 27. Kf1 {[%clk 0:00:56]}  d4 {[%clk 0:01:08]} 28. exd4 {[%clk 0:00:51]}  e4 {[%clk 0:01:05]} 29. Ng1 {[%clk 0:00:47]}  Rxd4 {[%clk 0:01:04]} 30. Ne2 {[%clk 0:00:46]}  Nxe2 {[%clk 0:01:03]} 31. Bxe2 {[%clk 0:00:47]}  c3 {[%clk 0:01:02]} 32. Rb1 {[%clk 0:00:45]}  Rd2 {[%clk 0:00:59]} 33. Red1 {[%clk 0:00:45]}  Rcd8 {[%clk 0:00:57]} 34. Rxd2 {[%clk 0:00:44]}  Rxd2 {[%clk 0:00:56]} 35. Rd1 {[%clk 0:00:45]}  Rxd1+ {[%clk 0:00:47]} 36. Bxd1 {[%clk 0:00:44]}  Kf7 {[%clk 0:00:48]} 37. Ke2 {[%clk 0:00:43]}  Ke6 {[%clk 0:00:46]} 38. Ke3 {[%clk 0:00:44]}  Ke5 {[%clk 0:00:46]} 39. Be2 {[%clk 0:00:40]}  Bd5 {[%clk 0:00:44]} 40. b5 {[%clk 0:00:37]}  f5 {[%clk 0:00:33]} 41. a5 {[%clk 0:00:36]}  Be6 {[%clk 0:00:32]} 42. a6 {[%clk 0:00:27]}  Bc8 {[%clk 0:00:28]} 43. Bc4 {[%clk 0:00:17]}  f4+ {[%clk 0:00:20]} 44. gxf4+ {[%clk 0:00:17]}  Kf5 {[%clk 0:00:21]} 45. Bf1 {[%clk 0:00:16]}  Kg4 {[%clk 0:00:19]} 46. Kxe4 {[%clk 0:00:16]}  Kxh4 {[%clk 0:00:19]} 47. Kd5 {[%clk 0:00:16]}  Kg4 {[%clk 0:00:18]} 48. Kc6 {[%clk 0:00:16]}  Kxf4 {[%clk 0:00:18]} 49. Kc7 {[%clk 0:00:17]}  Be6 {[%clk 0:00:18]} 50. b6 {[%clk 0:00:17]}  axb6 {[%clk 0:00:16]} 51. Bg2 {[%clk 0:00:17]} 1-0


[Site "https://www.chess.com"]

[Event "Titled Tuesday Blitz February 14 Early 2023"]
[White "Bodnaruk, Anastasia"]
[Black "Gonzalez, Francisco Silva"]
[WhiteFideId "4181751"]
[BlackFideId "1512285"]
[WhiteElo "2350"]
[BlackElo "2021"]
[Result "1/2-1/2"]
[Round "01"]
[TimeControl "180+2"]
[Date "2023.02.15"]
[WhiteClock "0:00:03"]
[BlackClock "0:00:09"]

1. e4 {[%clk 0:02:59]}  e5 {[%clk 0:02:58]} 2. Nf3 {[%clk 0:02:59]}  Nc6 {[%clk 0:02:58]} 3. Bc4 {[%clk 0:02:58]}  Bc5 {[%clk 0:02:55]} 4. d3 {[%clk 0:02:58]}  Nf6 {[%clk 0:02:55]} 5. Bg5 {[%clk 0:02:56]}  h6 {[%clk 0:02:54]} 6. Bh4 {[%clk 0:02:56]}  g5 {[%clk 0:02:54]} 7. Bg3 {[%clk 0:02:55]}  d6 {[%clk 0:02:54]} 8. c3 {[%clk 0:02:42]}  a6 {[%clk 0:02:51]} 9. Bb3 {[%clk 0:02:34]}  Bg4 {[%clk 0:02:49]} 10. Nbd2 {[%clk 0:02:29]}  Ba7 {[%clk 0:02:48]} 11. Nf1 {[%clk 0:02:25]}  Ne7 {[%clk 0:02:42]} 12. Ne3 {[%clk 0:02:21]}  Bh5 {[%clk 0:02:40]} 13. h4 {[%clk 0:02:16]}  Ng6 {[%clk 0:02:00]} 14. Nf5 {[%clk 0:01:56]}  Kf8 {[%clk 0:01:56]} 15. hxg5 {[%clk 0:01:39]}  hxg5 {[%clk 0:01:55]} 16. Qd2 {[%clk 0:01:40]}  Bxf3 {[%clk 0:01:53]} 17. Rxh8+ {[%clk 0:01:39]}  Nxh8 {[%clk 0:01:53]} 18. gxf3 {[%clk 0:01:39]}  Nh5 {[%clk 0:01:49]} 19. O-O-O {[%clk 0:01:37]}  Qf6 {[%clk 0:01:42]} 20. Rh1 {[%clk 0:01:34]}  Nf4 {[%clk 0:01:42]} 21. Rh7 {[%clk 0:01:27]}  c6 {[%clk 0:01:16]} 22. Qd1 {[%clk 0:01:12]}  d5 {[%clk 0:01:10]} 23. Bxf4 {[%clk 0:01:11]}  exf4 {[%clk 0:01:06]} 24. Qh1 {[%clk 0:01:10]}  Ng6 {[%clk 0:01:06]} 25. Qh6+ {[%clk 0:01:05]}  Ke8 {[%clk 0:01:06]} 26. Ng7+ {[%clk 0:00:40]}  Kd7 {[%clk 0:00:59]} 27. Nh5 {[%clk 0:00:40]}  Qe7 {[%clk 0:00:54]} 28. Qg7 {[%clk 0:00:32]}  Rf8 {[%clk 0:00:50]} 29. Nf6+ {[%clk 0:00:16]}  Kd6 {[%clk 0:00:48]} 30. d4 {[%clk 0:00:13]}  Kc7 {[%clk 0:00:21]} 31. Qxg6 {[%clk 0:00:13]}  Kd8 {[%clk 0:00:17]} 32. Qxg5 {[%clk 0:00:12]}  Bb8 {[%clk 0:00:16]} 33. e5 {[%clk 0:00:10]}  b5 {[%clk 0:00:14]} 34. Rg7 {[%clk 0:00:07]}  Kc7 {[%clk 0:00:13]} 35. Rg8 {[%clk 0:00:07]}  Kb7 {[%clk 0:00:12]} 36. Rxf8 {[%clk 0:00:07]}  Qxf8 {[%clk 0:00:12]} 37. Nd7 {[%clk 0:00:07]}  Qh8 {[%clk 0:00:11]} 38. Nxb8 {[%clk 0:00:07]}  Qh1+ {[%clk 0:00:11]} 39. Bd1 {[%clk 0:00:07]}  Kxb8 {[%clk 0:00:09]} 40. Qg8+ {[%clk 0:00:07]}  Kb7 {[%clk 0:00:09]} 41. Qxf7+ {[%clk 0:00:08]}  Kb6 {[%clk 0:00:10]} 42. Qxf4 {[%clk 0:00:06]}  Qe1 {[%clk 0:00:10]} 43. Qf5 {[%clk 0:00:05]}  Qxf2 {[%clk 0:00:10]} 44. Qd3 {[%clk 0:00:05]}  Qe1 {[%clk 0:00:09]} 45. Qe2 {[%clk 0:00:05]}  Qg1 {[%clk 0:00:09]} 46. e6 {[%clk 0:00:06]}  Qg5+ {[%clk 0:00:10]} 47. Kb1 {[%clk 0:00:04]}  Qg6+ {[%clk 0:00:09]} 48. Bc2 {[%clk 0:00:04]}  Qg1+ {[%clk 0:00:09]} 49. Bd1 {[%clk 0:00:05]}  Qg6+ {[%clk 0:00:10]} 50. Bc2 {[%clk 0:00:02]}  Qg1+ {[%clk 0:00:10]} 51. Qd1 {[%clk 0:00:02]}  Qg6 {[%clk 0:00:10]} 52. Bxg6 {[%clk 0:00:02]}  c5 {[%clk 0:00:10]} 53. e7 {[%clk 0:00:03]}  cxd4 {[%clk 0:00:09]} 54. e8=Q {[%clk 0:00:04]}  dxc3 {[%clk 0:00:10]} 55. Qxd5 {[%clk 0:00:03]}  Ka5 {[%clk 0:00:11]} 56. b4+ {[%clk 0:00:03]}  Kxb4 {[%clk 0:00:10]} 57. Qee4+ {[%clk 0:00:04]}  Ka5 {[%clk 0:00:10]} 58. Qed4 {[%clk 0:00:04]}  c2+ {[%clk 0:00:09]} 59. Kc1 {[%clk 0:00:03]} 1/2-1/2


[Site "https://www.chess.com"]

[Event "Titled Tuesday Blitz February 14 Early 2023"]
[White "Tinmaz, Kerem"]
[Black "Principe, Gerson"]
[WhiteFideId "44559151"]
[BlackFideId "3804550"]
[WhiteElo "2177"]
[BlackElo "2226"]
[Result "1-0"]
[Round "01"]
[TimeControl "180+2"]
[Date "2023.02.15"]
[WhiteClock "0:00:25"]
[BlackClock "0:00:08"]

1. e4 {[%clk 0:03:00]}  c5 {[%clk 0:02:59]} 2. Nc3 {[%clk 0:03:00]}  e6 {[%clk 0:02:59]} 3. Nf3 {[%clk 0:02:47]}  Nc6 {[%clk 0:02:57]} 4. d4 {[%clk 0:02:46]}  cxd4 {[%clk 0:02:57]} 5. Nxd4 {[%clk 0:02:47]}  Nf6 {[%clk 0:02:58]} 6. Ndb5 {[%clk 0:02:47]}  Bb4 {[%clk 0:02:58]} 7. a3 {[%clk 0:02:43]}  Bxc3+ {[%clk 0:02:58]} 8. Nxc3 {[%clk 0:02:44]}  d5 {[%clk 0:02:57]} 9. exd5 {[%clk 0:02:44]}  exd5 {[%clk 0:02:58]} 10. Bd3 {[%clk 0:02:44]}  O-O {[%clk 0:02:56]} 11. O-O {[%clk 0:02:43]}  d4 {[%clk 0:02:57]} 12. Ne2 {[%clk 0:02:40]}  Re8 {[%clk 0:02:43]} 13. Bg5 {[%clk 0:02:37]}  h6 {[%clk 0:02:42]} 14. Bh4 {[%clk 0:02:34]}  g5 {[%clk 0:02:42]} 15. Bg3 {[%clk 0:02:34]}  Ne4 {[%clk 0:02:43]} 16. f3 {[%clk 0:02:23]}  Nc5 {[%clk 0:02:13]} 17. b4 {[%clk 0:01:53]}  Nxd3 {[%clk 0:02:11]} 18. Qxd3 {[%clk 0:01:54]}  Bf5 {[%clk 0:02:09]} 19. Qxf5 {[%clk 0:01:44]}  Rxe2 {[%clk 0:02:08]} 20. Rfe1 {[%clk 0:01:45]}  Re3 {[%clk 0:01:18]} 21. Bf2 {[%clk 0:01:22]}  Rxe1+ {[%clk 0:00:45]} 22. Rxe1 {[%clk 0:01:23]}  a6 {[%clk 0:00:45]} 23. h4 {[%clk 0:01:16]}  Kg7 {[%clk 0:00:41]} 24. Re4 {[%clk 0:00:51]}  Qf6 {[%clk 0:00:38]} 25. Qd7 {[%clk 0:00:46]}  Rd8 {[%clk 0:00:29]} 26. Qxb7 {[%clk 0:00:46]}  d3 {[%clk 0:00:26]} 27. cxd3 {[%clk 0:00:47]}  Rxd3 {[%clk 0:00:26]} 28. hxg5 {[%clk 0:00:41]}  hxg5 {[%clk 0:00:23]} 29. Qxa6 {[%clk 0:00:33]}  Rd1+ {[%clk 0:00:22]} 30. Re1 {[%clk 0:00:34]}  Rxe1+ {[%clk 0:00:20]} 31. Bxe1 {[%clk 0:00:35]}  Qd4+ {[%clk 0:00:19]} 32. Bf2 {[%clk 0:00:34]}  Qd1+ {[%clk 0:00:11]} 33. Kh2 {[%clk 0:00:34]}  Qd6+ {[%clk 0:00:11]} 34. Bg3 {[%clk 0:00:32]}  Qd5 {[%clk 0:00:11]} 35. Qe2 {[%clk 0:00:25]}  Nd4 {[%clk 0:00:08]} 36. Qe4 {[%clk 0:00:25]} 1-0


[Site "https://www.chess.com"]